[Event "*** Titled Tuesday Blitz"]
[Site "Chess.com"]
[Date "2020.11.10"]
[Round "5"]
[White "CzechmVIII"]
[Black "Forantes"]
[Result "0-1"]
[WhiteElo "2137"]
[BlackElo "2352"]
[TimeControl "180+1"]
[EndTime "10:59:10 PST"]
[Termination "Forantes won by resignation"]

1. e4 {[%clk 0:03:00.9]} 1... c5 {[%clk 0:02:59.7]} 2. Nf3 {[%clk 0:03:00.7]}
2... Nc6 {[%clk 0:02:59.5]} 3. Nc3 {[%clk 0:03:00.3]} 3... g6 {[%clk 0:02:58.7]}
4. d4 {[%clk 0:03:00]} 4... cxd4 {[%clk 0:02:58.2]} 5. Nxd4 {[%clk 0:03:00.9]}
5... Bg7 {[%clk 0:02:58.6]} 6. Be3 {[%clk 0:03:01.6]} 6... Nf6 {[%clk
0:02:57.5]} 7. Bc4 {[%clk 0:03:01.3]} 7... O-O {[%clk 0:02:57.9]} 8. Bb3 {[%clk
0:03:01.3]} 8... d5 {[%clk 0:02:58.3]} 9. exd5 {[%clk 0:02:51.1]} 9... Na5
{[%clk 0:02:57.5]} 10. O-O {[%clk 0:02:26.7]} 10... b6 {[%clk 0:02:56.3]} 11.
Nc6 {[%clk 0:02:16.6]} 11... Nxc6 {[%clk 0:02:50.5]} 12. dxc6 {[%clk 0:02:16.7]}
12... Qc7 {[%clk 0:02:50.6]} 13. Nd5 {[%clk 0:02:06.1]} 13... Nxd5 {[%clk
0:02:45.3]} 14. Bxd5 {[%clk 0:02:03.8]} 14... Bxb2 {[%clk 0:02:26]} 15. Rb1
{[%clk 0:02:03.8]} 15... Bg7 {[%clk 0:02:17.3]} 16. Bf3 {[%clk 0:01:59.9]} 16...
Ba6 {[%clk 0:02:13.2]} 17. Re1 {[%clk 0:01:57.6]} 17... Rfd8 {[%clk 0:02:09.7]}
18. Qc1 {[%clk 0:01:57.8]} 18... Bc3 {[%clk 0:01:56.2]} 19. Rd1 {[%clk
0:01:48.1]} 19... Rxd1+ {[%clk 0:01:55.9]} 20. Qxd1 {[%clk 0:01:46.7]} 20... Rd8
{[%clk 0:01:55.1]} 21. Qc1 {[%clk 0:01:41.9]} 21... Bc4 {[%clk 0:01:54.8]} 22.
Bf4 {[%clk 0:01:15.3]} 22... e5 {[%clk 0:01:32.9]} 23. Bg5 {[%clk 0:01:15.2]}
23... Rd6 {[%clk 0:01:19.9]} 24. Qa3 {[%clk 0:01:05.8]} 24... Bd4 {[%clk
0:01:19.4]} 25. Be3 {[%clk 0:00:51.4]} 25... Bxe3 {[%clk 0:00:41.3]} 26. Qxe3
{[%clk 0:00:51.1]} 26... f6 {[%clk 0:00:41.1]} 27. a4 {[%clk 0:00:41.6]} 27...
Bd5 {[%clk 0:00:39.4]} 28. Bxd5+ {[%clk 0:00:36.8]} 28... Rxd5 {[%clk
0:00:39.5]} 29. Qb3 {[%clk 0:00:36.8]} 29... Qf7 {[%clk 0:00:38.9]} 30. c7
{[%clk 0:00:20.3]} 30... Rc5 {[%clk 0:00:38.8]} 31. Qxf7+ {[%clk 0:00:19.1]}
31... Kxf7 {[%clk 0:00:38.7]} 32. a5 {[%clk 0:00:19.7]} 32... b5 {[%clk
0:00:15]} 33. a6 {[%clk 0:00:15.8]} 33... Rxc2 {[%clk 0:00:13.1]} 34. h4 {[%clk
0:00:14.4]} 34... Rxc7 {[%clk 0:00:12]} 35. Rxb5 {[%clk 0:00:14.4]} 35... Ke6
{[%clk 0:00:12.1]} 36. Kh2 {[%clk 0:00:03.9]} 36... h5 {[%clk 0:00:10]} 37. Rb8
{[%clk 0:00:03.6]} 37... Rc6 {[%clk 0:00:09.6]} 38. Rg8 {[%clk 0:00:02.3]} 38...
Kf5 {[%clk 0:00:09.5]} 39. Rxg6 {[%clk 0:00:03.2]} 39... Kxg6 {[%clk 0:00:08.8]}
0-1

[Event "*** Titled Tuesday Blitz"]
[Site "Chess.com"]
[Date "2020.11.10"]
[Round "5"]
[White "GrigorGrigorov"]
[Black "VerdeNotte"]
[Result "0-1"]
[WhiteElo "2754"]
[BlackElo "2887"]
[TimeControl "180+1"]
[EndTime "10:59:12 PST"]
[Termination "VerdeNotte won by resignation"]

1. d4 {[%clk 0:03:00.9]} 1... Nf6 {[%clk 0:02:59.7]} 2. c4 {[%clk 0:02:58.2]}
2... g6 {[%clk 0:03:00.2]} 3. Nc3 {[%clk 0:02:58]} 3... Bg7 {[%clk 0:03:00.6]}
4. e4 {[%clk 0:02:57]} 4... d6 {[%clk 0:03:00.5]} 5. Nge2 {[%clk 0:02:55.9]}
5... c5 {[%clk 0:02:56.6]} 6. d5 {[%clk 0:02:55.3]} 6... e5 {[%clk 0:02:53.4]}
7. Ng3 {[%clk 0:02:48.7]} 7... h5 {[%clk 0:02:52.3]} 8. Be2 {[%clk 0:02:34]}
8... h4 {[%clk 0:02:49.8]} 9. Nf1 {[%clk 0:02:33.4]} 9... Nh5 {[%clk 0:02:38]}
10. Ne3 {[%clk 0:02:11.4]} 10... Nf4 {[%clk 0:02:34.2]} 11. Bf3 {[%clk
0:02:07.5]} 11... Nd7 {[%clk 0:02:28.4]} 12. g3 {[%clk 0:02:02.8]} 12... Nh3
{[%clk 0:02:24.3]} 13. Bd2 {[%clk 0:01:52.9]} 13... Nf6 {[%clk 0:02:14.8]} 14.
Qe2 {[%clk 0:01:48.9]} 14... Ng5 {[%clk 0:02:11.2]} 15. O-O-O {[%clk 0:01:43.4]}
15... Nxf3 {[%clk 0:02:07.9]} 16. Qxf3 {[%clk 0:01:42.7]} 16... a6 {[%clk
0:02:08]} 17. g4 {[%clk 0:01:37.4]} 17... Bh6 {[%clk 0:02:04]} 18. Rhg1 {[%clk
0:01:32.5]} 18... Bg5 {[%clk 0:01:57.7]} 19. Nf5 {[%clk 0:01:10.4]} 19... Bxd2+
{[%clk 0:01:55.8]} 20. Rxd2 {[%clk 0:01:10]} 20... gxf5 {[%clk 0:01:55]} 21.
exf5 {[%clk 0:01:04.7]} 21... Nh7 {[%clk 0:01:49.4]} 22. Qe2 {[%clk 0:00:58.4]}
22... Qe7 {[%clk 0:01:39.5]} 23. Ne4 {[%clk 0:00:53.6]} 23... Bd7 {[%clk
0:01:24.8]} 24. Qe3 {[%clk 0:00:44.6]} 24... O-O-O {[%clk 0:01:22.3]} 25. b4
{[%clk 0:00:34.9]} 25... cxb4 {[%clk 0:01:14.4]} 26. Qb6 {[%clk 0:00:32.6]}
26... Be8 {[%clk 0:01:08.4]} 27. c5 {[%clk 0:00:20.4]} 27... Qc7 {[%clk
0:01:04.3]} 28. Nxd6+ {[%clk 0:00:19]} 28... Rxd6 {[%clk 0:01:04.4]} 29. Qxd6
{[%clk 0:00:18.5]} 29... Qxd6 {[%clk 0:01:04.4]} 30. cxd6 {[%clk 0:00:19.4]}
30... Ba4 {[%clk 0:00:58.6]} 31. g5 {[%clk 0:00:17.1]} 31... Kd7 {[%clk
0:00:54.5]} 32. g6 {[%clk 0:00:17.3]} 32... Nf6 {[%clk 0:00:50.9]} 33. gxf7
{[%clk 0:00:16.4]} 33... Rf8 {[%clk 0:00:49.3]} 34. Rg7 {[%clk 0:00:13.8]} 34...
Kxd6 {[%clk 0:00:45.9]} 35. Re2 {[%clk 0:00:13]} 35... Bd7 {[%clk 0:00:43.3]}
36. Kb2 {[%clk 0:00:08.9]} 36... Bxf5 {[%clk 0:00:40.9]} 37. f4 {[%clk
0:00:09.6]} 37... exf4 {[%clk 0:00:35.8]} 38. Rf2 {[%clk 0:00:09.6]} 38... Nxd5
{[%clk 0:00:34.7]} 39. Rfg2 {[%clk 0:00:07.9]} 39... a5 {[%clk 0:00:28.1]} 40.
R2g5 {[%clk 0:00:07.9]} 40... Be6 {[%clk 0:00:27.1]} 41. R5g6 {[%clk 0:00:07.5]}
41... Ke7 {[%clk 0:00:25.7]} 42. Rh6 {[%clk 0:00:07]} 42... Rxf7 {[%clk
0:00:24.4]} 43. Rxf7+ {[%clk 0:00:07]} 43... Bxf7 {[%clk 0:00:23.4]} 44. Rxh4
{[%clk 0:00:07.6]} 44... Kf6 {[%clk 0:00:20.8]} 0-1

[Event "*** Titled Tuesday Blitz"]
[Site "Chess.com"]
[Date "2020.11.10"]
[Round "5"]
[White "Guenplen"]
[Black "Matibar"]
[Result "1/2-1/2"]
[WhiteElo "2888"]
[BlackElo "2769"]
[TimeControl "180+1"]
[EndTime "10:59:12 PST"]
[Termination "Game drawn by repetition"]

1. d4 {[%clk 0:03:00.9]} 1... d5 {[%clk 0:02:35.3]} 2. Bf4 {[%clk 0:03:00.6]}
2... c5 {[%clk 0:02:26.9]} 3. e3 {[%clk 0:03:00.4]} 3... Nc6 {[%clk 0:02:26.9]}
4. c3 {[%clk 0:03:00.3]} 4... Bf5 {[%clk 0:02:26.6]} 5. Nd2 {[%clk 0:02:58.6]}
5... e6 {[%clk 0:02:26.7]} 6. Ngf3 {[%clk 0:02:58]} 6... Bd6 {[%clk 0:02:23.2]}
7. Bb5 {[%clk 0:02:53.1]} 7... Ne7 {[%clk 0:02:16.1]} 8. Bxd6 {[%clk 0:02:32.5]}
8... Qxd6 {[%clk 0:02:15.5]} 9. O-O {[%clk 0:02:33.2]} 9... O-O {[%clk
0:02:14.9]} 10. Re1 {[%clk 0:02:30.1]} 10... Bg4 {[%clk 0:02:06]} 11. h3 {[%clk
0:02:27.5]} 11... Bxf3 {[%clk 0:02:04.2]} 12. Nxf3 {[%clk 0:02:27.2]} 12... Rad8
{[%clk 0:01:59.8]} 13. Bd3 {[%clk 0:02:16.8]} 13... e5 {[%clk 0:01:49.9]} 14.
dxe5 {[%clk 0:02:14.3]} 14... Nxe5 {[%clk 0:01:50.2]} 15. Nxe5 {[%clk
0:02:15.2]} 15... Qxe5 {[%clk 0:01:50.1]} 16. Qa4 {[%clk 0:02:13]} 16... Nc6
{[%clk 0:01:46.3]} 17. Bb5 {[%clk 0:02:08.9]} 17... Rd6 {[%clk 0:01:26.5]} 18.
Bxc6 {[%clk 0:02:06]} 18... Rxc6 {[%clk 0:01:26.2]} 19. Qxa7 {[%clk 0:01:56.2]}
19... Qe4 {[%clk 0:01:19.3]} 20. f3 {[%clk 0:01:48]} 20... Qc2 {[%clk
0:01:14.7]} 21. Qxb7 {[%clk 0:01:12.2]} 21... Rg6 {[%clk 0:01:14.2]} 22. g4
{[%clk 0:01:12.7]} 22... h5 {[%clk 0:01:11.1]} 23. Qb3 {[%clk 0:01:11.1]} 23...
Qf5 {[%clk 0:01:05.7]} 24. Qd1 {[%clk 0:01:03.8]} 24... hxg4 {[%clk 0:01:01.8]}
25. hxg4 {[%clk 0:01:01.6]} 25... Re8 {[%clk 0:00:57.5]} 26. Qe2 {[%clk
0:00:38.3]} 26... Re4 {[%clk 0:00:46.4]} 27. a4 {[%clk 0:00:30.6]} 27... d4
{[%clk 0:00:28.8]} 28. cxd4 {[%clk 0:00:27.4]} 28... cxd4 {[%clk 0:00:28.6]} 29.
Qg2 {[%clk 0:00:22.7]} 29... Rexg4 {[%clk 0:00:27.4]} 30. fxg4 {[%clk 0:00:23]}
30... Rxg4 {[%clk 0:00:28.3]} 31. exd4 {[%clk 0:00:20.5]} 31... Qf3 {[%clk
0:00:23.5]} 32. Qxg4 {[%clk 0:00:19.9]} 32... Qxg4+ {[%clk 0:00:23.8]} 33. Kf2
{[%clk 0:00:20.3]} 33... Qxd4+ {[%clk 0:00:24]} 34. Kf3 {[%clk 0:00:18.4]} 34...
Qf6+ {[%clk 0:00:23.2]} 35. Ke3 {[%clk 0:00:17.1]} 35... Qxb2 {[%clk 0:00:22.9]}
36. a5 {[%clk 0:00:17]} 36... Qc3+ {[%clk 0:00:23.3]} 37. Ke4 {[%clk 0:00:14.6]}
37... Qc4+ {[%clk 0:00:20.6]} 38. Ke3 {[%clk 0:00:14.5]} 38... f5 {[%clk
0:00:13.9]} 39. a6 {[%clk 0:00:13.3]} 39... Qe4+ {[%clk 0:00:14.2]} 40. Kd2
{[%clk 0:00:12.9]} 40... Qd4+ {[%clk 0:00:14.4]} 41. Kc2 {[%clk 0:00:13.3]}
41... Qc4+ {[%clk 0:00:14.8]} 42. Kb2 {[%clk 0:00:13.8]} 42... Qb4+ {[%clk
0:00:14.9]} 43. Kc2 {[%clk 0:00:14.2]} 43... Qc4+ {[%clk 0:00:14.7]} 44. Kd2
{[%clk 0:00:14.5]} 44... Qd4+ {[%clk 0:00:14.8]} 45. Kc2 {[%clk 0:00:07.3]}
45... Qc4+ {[%clk 0:00:12.3]} 1/2-1/2

[Event "*** Titled Tuesday Blitz"]
[Site "Chess.com"]
[Date "2020.11.10"]
[Round "5"]
[White "Atousa1"]
[Black "FontVella8"]
[Result "0-1"]
[WhiteElo "2406"]
[BlackElo "2518"]
[TimeControl "180+1"]
[EndTime "10:59:12 PST"]
[Termination "FontVella8 won by resignation"]

1. e4 {[%clk 0:03:00.6]} 1... c6 {[%clk 0:02:59.3]} 2. d4 {[%clk 0:03:00]} 2...
d5 {[%clk 0:03:00.2]} 3. Nd2 {[%clk 0:02:59.3]} 3... Nd7 {[%clk 0:02:58.1]} 4.
Ngf3 {[%clk 0:02:50.8]} 4... dxe4 {[%clk 0:02:57.8]} 5. Nxe4 {[%clk 0:02:50.7]}
5... Ngf6 {[%clk 0:02:58.4]} 6. Bd3 {[%clk 0:02:42.2]} 6... Nxe4 {[%clk
0:02:57.3]} 7. Bxe4 {[%clk 0:02:43.1]} 7... Nf6 {[%clk 0:02:57.7]} 8. Bd3 {[%clk
0:02:43.8]} 8... Bg4 {[%clk 0:02:57.6]} 9. c3 {[%clk 0:02:43.5]} 9... e6 {[%clk
0:02:57.5]} 10. O-O {[%clk 0:02:43.1]} 10... Bd6 {[%clk 0:02:57.7]} 11. h3
{[%clk 0:02:42]} 11... Bh5 {[%clk 0:02:57.6]} 12. Re1 {[%clk 0:02:38.9]} 12...
O-O {[%clk 0:02:57.3]} 13. Be2 {[%clk 0:02:33]} 13... c5 {[%clk 0:02:55.6]} 14.
Be3 {[%clk 0:02:29.8]} 14... Nd5 {[%clk 0:02:45.3]} 15. dxc5 {[%clk 0:02:22]}
15... Nxe3 {[%clk 0:02:37.8]} 16. fxe3 {[%clk 0:02:14.4]} 16... Bxc5 {[%clk
0:02:34.9]} 17. Nd4 {[%clk 0:02:14.7]} 17... Bxe2 {[%clk 0:02:30.3]} 18. Qxe2
{[%clk 0:02:15.6]} 18... e5 {[%clk 0:02:26.2]} 19. Nf5 {[%clk 0:02:13.1]} 19...
g6 {[%clk 0:02:21.6]} 20. Ng3 {[%clk 0:02:04.8]} 20... Kg7 {[%clk 0:02:10.3]}
21. Qf3 {[%clk 0:01:56.7]} 21... Qe7 {[%clk 0:02:05.5]} 22. Rad1 {[%clk
0:01:38.8]} 22... Rad8 {[%clk 0:02:04]} 23. Kh1 {[%clk 0:01:33.1]} 23... f5
{[%clk 0:02:00.8]} 24. Nf1 {[%clk 0:00:56]} 24... e4 {[%clk 0:01:55.4]} 25. Qe2
{[%clk 0:00:50.5]} 25... Qe5 {[%clk 0:01:51.5]} 26. Rd2 {[%clk 0:00:47.7]} 26...
Rxd2 {[%clk 0:01:36.5]} 27. Qxd2 {[%clk 0:00:48.6]} 27... Bd6 {[%clk 0:01:25.5]}
28. Rd1 {[%clk 0:00:48.6]} 28... Rd8 {[%clk 0:01:24.5]} 29. Qd5 {[%clk
0:00:46.5]} 29... Qxd5 {[%clk 0:01:21.3]} 30. Rxd5 {[%clk 0:00:45.9]} 30... Kf6
{[%clk 0:01:21.5]} 31. c4 {[%clk 0:00:42.2]} 31... Ke6 {[%clk 0:01:20]} 32. Kg1
{[%clk 0:00:40.6]} 32... Rc8 {[%clk 0:01:13.1]} 33. b3 {[%clk 0:00:39.4]} 33...
Rc5 {[%clk 0:01:09.4]} 34. Rd1 {[%clk 0:00:36.2]} 34... Ra5 {[%clk 0:01:00.3]}
35. Rd2 {[%clk 0:00:36.6]} 35... Bb4 {[%clk 0:00:55.8]} 36. Rc2 {[%clk
0:00:36.7]} 36... Ra6 {[%clk 0:00:53.7]} 37. Kf2 {[%clk 0:00:35]} 37... Rd6
{[%clk 0:00:53.5]} 38. Ke2 {[%clk 0:00:35.3]} 38... Ke5 {[%clk 0:00:52.2]} 39.
Nd2 {[%clk 0:00:35.1]} 39... g5 {[%clk 0:00:47.4]} 40. Nb1 {[%clk 0:00:35.1]}
40... f4 {[%clk 0:00:42.2]} 41. a3 {[%clk 0:00:34.7]} 41... Bc5 {[%clk
0:00:39.9]} 42. b4 {[%clk 0:00:34.8]} 42... Bxe3 {[%clk 0:00:39.3]} 43. Nc3
{[%clk 0:00:30.7]} 43... h5 {[%clk 0:00:28.4]} 44. Nd5 {[%clk 0:00:30.5]} 44...
Bd4 {[%clk 0:00:24.1]} 45. a4 {[%clk 0:00:30.1]} 45... g4 {[%clk 0:00:24]} 46.
hxg4 {[%clk 0:00:28.7]} 46... hxg4 {[%clk 0:00:24.9]} 47. a5 {[%clk 0:00:21.4]}
47... f3+ {[%clk 0:00:24.8]} 48. gxf3 {[%clk 0:00:21.6]} 48... gxf3+ {[%clk
0:00:23.5]} 49. Kd1 {[%clk 0:00:21.9]} 49... e3 {[%clk 0:00:21.7]} 50. Rh2
{[%clk 0:00:21.3]} 50... e2+ {[%clk 0:00:20]} 51. Ke1 {[%clk 0:00:18.5]} 51...
Rxd5 {[%clk 0:00:19.7]} 52. Rh5+ {[%clk 0:00:16.5]} 52... Ke4 {[%clk 0:00:19.2]}
53. Rxd5 {[%clk 0:00:16.7]} 53... Bc3+ {[%clk 0:00:18.9]} 54. Rd2 {[%clk
0:00:16.6]} 54... Ke3 {[%clk 0:00:18.6]} 0-1

[Event "*** Titled Tuesday Blitz"]
[Site "Chess.com"]
[Date "2020.11.10"]
[Round "5"]
[White "MasterMK73"]
[Black "Tashik"]
[Result "1-0"]
[WhiteElo "2271"]
[BlackElo "2461"]
[TimeControl "180+1"]
[EndTime "10:59:13 PST"]
[Termination "MasterMK73 won on time"]

1. e4 {[%clk 0:03:00.9]} 1... e5 {[%clk 0:02:58.9]} 2. Nc3 {[%clk 0:02:59.4]}
2... Bc5 {[%clk 0:02:52.7]} 3. g3 {[%clk 0:02:58.2]} 3... d6 {[%clk 0:02:42.6]}
4. Bg2 {[%clk 0:02:57.4]} 4... Be6 {[%clk 0:02:28.4]} 5. Nge2 {[%clk 0:02:55.8]}
5... Qd7 {[%clk 0:02:28.4]} 6. h3 {[%clk 0:02:36.7]} 6... h5 {[%clk 0:02:26.1]}
7. d4 {[%clk 0:02:33.4]} 7... exd4 {[%clk 0:02:18.8]} 8. Nxd4 {[%clk 0:02:33.4]}
8... Bc4 {[%clk 0:02:12]} 9. b3 {[%clk 0:02:28.1]} 9... Ba6 {[%clk 0:02:11.7]}
10. Bb2 {[%clk 0:02:22.7]} 10... Nc6 {[%clk 0:02:09]} 11. Nf5 {[%clk 0:01:54.3]}
11... Rh7 {[%clk 0:01:57.1]} 12. Ne2 {[%clk 0:01:41]} 12... g6 {[%clk
0:01:52.7]} 13. Nfd4 {[%clk 0:01:36.1]} 13... Nge7 {[%clk 0:01:44.5]} 14. a3
{[%clk 0:01:27]} 14... Nxd4 {[%clk 0:01:38.4]} 15. Nxd4 {[%clk 0:01:22.7]} 15...
Nc6 {[%clk 0:01:32.2]} 16. Ne2 {[%clk 0:01:15.2]} 16... h4 {[%clk 0:01:19.6]}
17. c4 {[%clk 0:01:04.3]} 17... hxg3 {[%clk 0:01:16.3]} 18. Nxg3 {[%clk
0:01:02.7]} 18... b5 {[%clk 0:01:04.3]} 19. e5 {[%clk 0:00:38]} 19... Kf8 {[%clk
0:00:58.6]} 20. cxb5 {[%clk 0:00:29.1]} 20... Bxb5 {[%clk 0:00:58]} 21. Ne4
{[%clk 0:00:21.8]} 21... Qe7 {[%clk 0:00:20.3]} 22. Nxc5 {[%clk 0:00:19.6]}
22... dxc5 {[%clk 0:00:21.2]} 23. a4 {[%clk 0:00:16.7]} 23... Nxe5 {[%clk
0:00:20.5]} 24. axb5 {[%clk 0:00:15]} 24... Nd3+ {[%clk 0:00:10.4]} 25. Kf1
{[%clk 0:00:14.2]} 25... Nxb2 {[%clk 0:00:10.8]} 26. Qc2 {[%clk 0:00:14.4]}
26... Qf6 {[%clk 0:00:09.3]} 27. Bxa8 {[%clk 0:00:12.6]} 27... Nd3 {[%clk
0:00:09.4]} 28. Rd1 {[%clk 0:00:11.6]} 28... Nf4 {[%clk 0:00:07.5]} 29. Qe4
{[%clk 0:00:11.4]} 29... Kg7 {[%clk 0:00:06.9]} 30. Re1 {[%clk 0:00:09.5]} 30...
Rh5 {[%clk 0:00:06.3]} 31. Bc6 {[%clk 0:00:07.9]} 31... Rf5 {[%clk 0:00:06.8]}
32. f3 {[%clk 0:00:06.6]} 32... Nh5 {[%clk 0:00:06.4]} 33. Kg2 {[%clk 0:00:06]}
33... Qg5+ {[%clk 0:00:05]} 34. Qg4 {[%clk 0:00:05.7]} 34... Qd2+ {[%clk
0:00:04.9]} 35. Kf1 {[%clk 0:00:05.8]} 35... Rg5 {[%clk 0:00:05]} 36. Re2 {[%clk
0:00:01.7]} 36... Qd1+ {[%clk 0:00:01.8]} 37. Kf2 {[%clk 0:00:02.1]} 1-0

[Event "*** Titled Tuesday Blitz"]
[Site "Chess.com"]
[Date "2020.11.10"]
[Round "5"]
[White "pedromartinez91"]
[Black "indfraeng"]
[Result "0-1"]
[WhiteElo "2567"]
[BlackElo "2400"]
[TimeControl "180+1"]
[EndTime "10:59:16 PST"]
[Termination "indfraeng won by resignation"]

1. b3 {[%clk 0:03:00.9]} 1... Nf6 {[%clk 0:02:59.5]} 2. Bb2 {[%clk 0:02:58.5]}
2... d5 {[%clk 0:02:59.8]} 3. Nf3 {[%clk 0:02:56.3]} 3... c5 {[%clk 0:02:59.9]}
4. e3 {[%clk 0:02:55.8]} 4... Nc6 {[%clk 0:03:00.1]} 5. Bb5 {[%clk 0:02:55.8]}
5... Bd7 {[%clk 0:02:53.9]} 6. O-O {[%clk 0:02:53.8]} 6... e6 {[%clk 0:02:53.3]}
7. Bxc6 {[%clk 0:02:48.4]} 7... Bxc6 {[%clk 0:02:52.5]} 8. Ne5 {[%clk
0:02:49.3]} 8... Bd6 {[%clk 0:02:53]} 9. Nxc6 {[%clk 0:02:47.5]} 9... bxc6
{[%clk 0:02:53.9]} 10. d3 {[%clk 0:02:46.7]} 10... O-O {[%clk 0:02:52.7]} 11.
Nd2 {[%clk 0:02:45.2]} 11... e5 {[%clk 0:02:51.5]} 12. e4 {[%clk 0:02:44.3]}
12... Rb8 {[%clk 0:02:43.9]} 13. Re1 {[%clk 0:02:40.4]} 13... a5 {[%clk
0:02:31.8]} 14. exd5 {[%clk 0:02:38.3]} 14... Nxd5 {[%clk 0:02:23.6]} 15. Bxe5
{[%clk 0:02:31.8]} 15... Bxe5 {[%clk 0:02:21.7]} 16. Rxe5 {[%clk 0:02:32.7]}
16... Qf6 {[%clk 0:02:14.4]} 17. Nc4 {[%clk 0:02:28.7]} 17... Nb6 {[%clk
0:02:00.1]} 18. Nxb6 {[%clk 0:02:13.1]} 18... Qxe5 {[%clk 0:01:42.7]} 19. Nd7
{[%clk 0:02:13]} 19... Qc3 {[%clk 0:01:42.2]} 20. Nxf8 {[%clk 0:02:07]} 20...
Rxf8 {[%clk 0:01:43.1]} 21. a4 {[%clk 0:01:57.9]} 21... Re8 {[%clk 0:01:41.9]}
22. h3 {[%clk 0:01:57.1]} 22... g6 {[%clk 0:01:37.5]} 23. Rb1 {[%clk 0:01:55.3]}
23... Re6 {[%clk 0:01:31.1]} 24. g3 {[%clk 0:01:53.7]} 24... h5 {[%clk
0:01:28.2]} 25. h4 {[%clk 0:01:53.5]} 25... Kg7 {[%clk 0:01:25.9]} 26. Qc1
{[%clk 0:01:52.8]} 26... Kh7 {[%clk 0:01:22.2]} 27. Kg2 {[%clk 0:01:52.5]} 27...
Re2 {[%clk 0:01:21.5]} 28. Qf4 {[%clk 0:01:48.1]} 28... Kg7 {[%clk 0:01:20.8]}
29. Rc1 {[%clk 0:01:44.5]} 29... Rxc2 {[%clk 0:01:01.8]} 30. Rxc2 {[%clk
0:01:41.5]} 30... Qxc2 {[%clk 0:01:02.7]} 31. Qe5+ {[%clk 0:01:41.1]} 31... Kh7
{[%clk 0:01:01.8]} 32. Qc7 {[%clk 0:01:38.6]} 32... Qxb3 {[%clk 0:00:59.4]} 33.
Qxa5 {[%clk 0:01:26.3]} 33... Qxd3 {[%clk 0:00:50.3]} 34. Qa7 {[%clk 0:01:20.3]}
34... Qd5+ {[%clk 0:00:48.4]} 35. Kh2 {[%clk 0:01:20.2]} 35... c4 {[%clk
0:00:46.2]} 36. Qe3 {[%clk 0:01:12.7]} 36... Qd3 {[%clk 0:00:41]} 37. Qf4 {[%clk
0:01:12.9]} 37... Qd5 {[%clk 0:00:39.8]} 38. a5 {[%clk 0:01:08.7]} 38... c3
{[%clk 0:00:36]} 39. a6 {[%clk 0:01:09.1]} 39... c5 {[%clk 0:00:26.4]} 40. a7
{[%clk 0:01:07]} 40... c2 {[%clk 0:00:19]} 41. Qc1 {[%clk 0:01:01.1]} 41... Qb7
{[%clk 0:00:07.2]} 42. Qa3 {[%clk 0:01:00.3]} 42... c1=Q {[%clk 0:00:05.3]} 43.
Qxc1 {[%clk 0:00:59.3]} 43... Qxa7 {[%clk 0:00:05.8]} 44. Qf4 {[%clk 0:01:00.1]}
44... Qe7 {[%clk 0:00:05.3]} 45. Qc4 {[%clk 0:00:59.5]} 45... Kg8 {[%clk
0:00:02.9]} 46. Qd5 {[%clk 0:00:59.3]} 46... Qc7 {[%clk 0:00:02]} 47. Qc4 {[%clk
0:00:58.5]} 47... Qd6 {[%clk 0:00:01.8]} 48. Kg1 {[%clk 0:00:58.5]} 48... Qd4
{[%clk 0:00:02]} 49. Qe2 {[%clk 0:00:55.4]} 49... c4 {[%clk 0:00:02.1]} 50. Qe8+
{[%clk 0:00:56.3]} 50... Kg7 {[%clk 0:00:02.6]} 51. g4 {[%clk 0:00:56.9]} 51...
c3 {[%clk 0:00:02.7]} 52. gxh5 {[%clk 0:00:55.3]} 52... c2 {[%clk 0:00:02.8]}
53. h6+ {[%clk 0:00:49.5]} 53... Kh7 {[%clk 0:00:03.2]} 54. Qh8+ {[%clk
0:00:50.4]} 54... Kxh8 {[%clk 0:00:03.1]} 0-1

[Event "*** Titled Tuesday Blitz"]
[Site "Chess.com"]
[Date "2020.11.10"]
[Round "5"]
[White "Hasangatin_Ramil"]
[Black "ExtremeLearner"]
[Result "1/2-1/2"]
[WhiteElo "2556"]
[BlackElo "2393"]
[TimeControl "180+1"]
[EndTime "10:59:16 PST"]
[Termination "Game drawn by repetition"]

1. e4 {[%clk 0:02:15.1]} 1... c6 {[%clk 0:02:59.9]} 2. Nf3 {[%clk 0:02:13.2]}
2... d5 {[%clk 0:02:59.5]} 3. d3 {[%clk 0:02:13.7]} 3... dxe4 {[%clk 0:02:59]}
4. dxe4 {[%clk 0:02:14.5]} 4... Qxd1+ {[%clk 0:02:59.3]} 5. Kxd1 {[%clk
0:02:15.4]} 5... Nf6 {[%clk 0:03:00.2]} 6. Nfd2 {[%clk 0:02:13]} 6... h5 {[%clk
0:03:00.5]} 7. f3 {[%clk 0:02:12.6]} 7... g5 {[%clk 0:03:00.1]} 8. Nb3 {[%clk
0:02:11.6]} 8... g4 {[%clk 0:02:58.2]} 9. Be3 {[%clk 0:02:11.6]} 9... h4 {[%clk
0:02:51.4]} 10. h3 {[%clk 0:02:09.5]} 10... gxf3 {[%clk 0:02:42.5]} 11. gxf3
{[%clk 0:02:08.6]} 11... Nh5 {[%clk 0:02:43]} 12. Rg1 {[%clk 0:02:07.4]} 12...
Ng3 {[%clk 0:02:40.1]} 13. Bg2 {[%clk 0:02:07.4]} 13... Bh6 {[%clk 0:02:35.8]}
14. Bxh6 {[%clk 0:02:02.7]} 14... Rxh6 {[%clk 0:02:36.7]} 15. N1d2 {[%clk
0:02:03.2]} 15... Nd7 {[%clk 0:02:34.4]} 16. f4 {[%clk 0:02:00.4]} 16... Nf6
{[%clk 0:02:27.5]} 17. Ke1 {[%clk 0:01:51.9]} 17... Nfh5 {[%clk 0:02:26.3]} 18.
f5 {[%clk 0:01:52.1]} 18... Nf4 {[%clk 0:02:25.4]} 19. Kf2 {[%clk 0:01:49.8]}
19... e6 {[%clk 0:02:18]} 20. Rae1 {[%clk 0:01:36.6]} 20... Kf8 {[%clk
0:02:14.1]} 21. Nf3 {[%clk 0:01:30.7]} 21... exf5 {[%clk 0:01:57.9]} 22. e5
{[%clk 0:01:18.2]} 22... Nxg2 {[%clk 0:01:25.1]} 23. Kxg2 {[%clk 0:01:14.9]}
23... f4 {[%clk 0:01:21.8]} 24. Kh2 {[%clk 0:01:14.7]} 24... Be6 {[%clk
0:01:10.3]} 25. Nc5 {[%clk 0:01:10.7]} 25... Ke7 {[%clk 0:01:08.6]} 26. Nd4
{[%clk 0:01:03.7]} 26... Nf5 {[%clk 0:00:50.4]} 27. Ncxe6 {[%clk 0:01:00.2]}
27... fxe6 {[%clk 0:00:48.7]} 28. Nxf5+ {[%clk 0:01:00]} 28... exf5 {[%clk
0:00:49.2]} 29. Rg7+ {[%clk 0:00:57.7]} 29... Ke6 {[%clk 0:00:49]} 30. Rd1
{[%clk 0:00:52.3]} 30... Kxe5 {[%clk 0:00:44.4]} 31. Re7+ {[%clk 0:00:50.1]}
31... Kf6 {[%clk 0:00:43.8]} 32. Rxb7 {[%clk 0:00:49.8]} 32... Re8 {[%clk
0:00:37.7]} 33. Kg2 {[%clk 0:00:45.6]} 33... Rg6+ {[%clk 0:00:36.6]} 34. Kf2
{[%clk 0:00:45.6]} 34... Rg3 {[%clk 0:00:32.2]} 35. Rd6+ {[%clk 0:00:30]} 35...
Ke5 {[%clk 0:00:32.2]} 36. Rd3 {[%clk 0:00:27]} 36... Reg8 {[%clk 0:00:26]} 37.
Re7+ {[%clk 0:00:14.7]} 37... Kf6 {[%clk 0:00:25.7]} 38. Rxa7 {[%clk 0:00:14.8]}
38... Rg2+ {[%clk 0:00:17.8]} 39. Kf1 {[%clk 0:00:15]} 39... Rg1+ {[%clk
0:00:14.5]} 40. Kf2 {[%clk 0:00:15.3]} 40... R8g2+ {[%clk 0:00:13.3]} 41. Kf3
{[%clk 0:00:15.3]} 41... Rg3+ {[%clk 0:00:11.5]} 42. Kf2 {[%clk 0:00:15.4]}
42... R3g2+ {[%clk 0:00:08.4]} 43. Kf3 {[%clk 0:00:15.5]} 43... Rg3+ {[%clk
0:00:07.1]} 44. Kf2 {[%clk 0:00:15.7]} 44... R3g2+ {[%clk 0:00:04.4]} 1/2-1/2